[Event "Cracovia Festival-A 2023"]
[Site "Krakow"]
[Date "2023.12.28"]
[Round "2.45"]
[White "Fodor, Balazs"]
[Black "Gaurav Rajesh Zagade"]
[Result "1-0"]
[ECO "D30"]
[WhiteElo "2225"]
[BlackElo "2126"]
[Annotator "ChessBase"]
[PlyCount "81"]
[EventDate "2023.12.24"]
[EventType "swiss"]
[EventCountry "POL"]
[SourceTitle "playchess.com"]
[Source "ChessBase"]
[SourceQuality "1"]
[TimeControl "40/5400+30:1800+30"]

1. d4 {[%emt 0:00:16]} d5 {[%emt 0:00:10]} 2. c4 {[%emt 0:00:47]} e6 {[%emt 0:00:13]} 3. Nf3 {[%emt 0:01:26]} a6 {[%emt 0:00:13]} 4. g3 {[%emt 0:02:19]} dxc4 {[%emt 0:00:35]} 5. Bg2 {[%emt 0:00:13]} Nc6 {[%emt 0:01:04]} 6. O-O {[%emt 0:00:47]} Rb8 {[%emt 0:00:28]} 7. e3 {[%emt 0:06:50]} b5 {[%emt 0:01:45]} 8. b3 {[%emt 0:03:20]} cxb3 {[%emt 0:00:36]} 9. axb3 {[%emt 0:00:18]} Nf6 {[%emt 0:03:59]} 10. Bb2 {[%emt 0:00:12]} Bb7 {[%emt 0:01:48]} 11. Qe2 {[%emt 0:00:33]} Nb4 {[%emt 0:03:58]} 12. Rc1 {[%emt 0:00:22]} Be7 {[%emt 0:04:26]} 13. Nbd2 {[%emt 0:04:01]} Ne4 {[%emt 0:07:29]} 14. Ba3 {[%emt 0:18:44]} Nxd2 {[%emt 0:07:08]} 15. Qxd2 {[%emt 0:00:51]} Nd5 {[%emt 0:02:10]} 16. Bxe7 {[%emt 0:05:59]} Nxe7 {[%emt 0:07:13]} 17. Rc5 {[%emt 0:05:27]} O-O {[%emt 0:07:48]} 18. Ne5 {[%emt 0:10:42]} Bxg2 {[%emt 0:01:23]} 19. Kxg2 {[%emt 0:00:08]} f6 {[%emt 0:06:06]} 20. Nd3 {[%emt 0:00:56]} Qd6 {[%emt 0:02:00]} 21. Rac1 {[%emt 0:02:20]} Rb7 {[%emt 0:02:12]} 22. b4 {[%emt 0:03:27]} Rd8 {[%emt 0:03:57]} 23. Qa2 {[%emt 0:01:58]} Kf7 {[%emt 0:05:29]} 24. h4 {[%emt 0:03:54]} g6 {[%emt 0:07:33]} 25. Nf4 {[%emt 0:00:26]} Rd7 {[%emt 0:00:51]} 26. e4 {[%emt 0:00:51]} Rb6 {[%emt 0:02:11]} 27. d5 {[%emt 0:03:30]} exd5 {[%emt 0:02:49]} 28. exd5 {[%emt 0:01:28]} Nf5 {[%emt 0:09:56]} 29. Rc6 {[%emt 0:03:26]} Nxh4+ {[%emt 0:00:16]} 30. Kf1 {[%emt 0:01:37]} Qxb4 {[%emt 0:03:01]} 31. d6+ {[%emt 0:03:31]} Kg7 {[%emt 0:00:17]} 32. Qe6 {[%emt 0:00:56]} Rxd6 {[%emt 0:01:48]} 33. Qe7+ {[%emt 0:00:06]} Kh6 {[%emt 0:00:38]} 34. Rxc7 {[%emt 0:00:49]} Kg5 {[%emt 0:01:06]} 35. R7c5+ {[%emt 0:00:27]} Kg4 {[%emt 0:00:59]} 36. Qe2+ {[%emt 0:00:12]} Nf3 {[%emt 0:00:11]} 37. Kg2 {[%emt 0:00:20]} Qb3 {[%emt 0:02:38]} 38. R5c3 {[%emt 0:00:12]} Qf7 {[%emt 0:00:45]} 39. Qxf3+ {[%emt 0:01:13]} Kg5 {[%emt 0:00:04]} 40. Qe3 {[%emt 0:00:00]} Qb7+ {[%emt 0:00:00]} 41. f3 {[%emt 0:01:39]} 1-0

[Event "Cracovia Festival-A 2023"]
[Site "Krakow"]
[Date "2023.12.28"]
[Round "2.46"]
[White "Kaim, Piotr"]
[Black "Dziewonski, Dariusz"]
[Result "0-1"]
[ECO "B22"]
[WhiteElo "2127"]
[BlackElo "2224"]
[Annotator "ChessBase"]
[PlyCount "132"]
[EventDate "2023.12.24"]
[EventType "swiss"]
[EventCountry "POL"]
[SourceTitle "playchess.com"]
[Source "ChessBase"]
[SourceQuality "1"]
[TimeControl "40/5400+30:1800+30"]

1. e4 {[%emt 0:00:05]} c5 {[%emt 0:00:12]} 2. c3 {[%emt 0:00:28]} Nf6 {[%emt 0:01:08]} 3. e5 {[%emt 0:00:10]} Nd5 {[%emt 0:00:04]} 4. d4 {[%emt 0:00:19]} cxd4 {[%emt 0:00:36]} 5. Nf3 {[%emt 0:00:06]} e6 {[%emt 0:01:40]} 6. cxd4 {[%emt 0:00:11]} d6 {[%emt 0:01:08]} 7. Bc4 {[%emt 0:02:18]} Nb6 {[%emt 0:01:46]} 8. Bb3 {[%emt 0:01:07]} dxe5 {[%emt 0:00:49]} 9. Nxe5 {[%emt 0:00:27]} N8d7 {[%emt 0:09:13]} 10. Qe2 {[%emt 0:05:43]} Nxe5 {[%emt 0:05:00]} 11. dxe5 {[%emt 0:00:38]} Be7 {[%emt 0:06:13]} 12. O-O {[%emt 0:01:24]} O-O {[%emt 0:01:47]} 13. Nc3 {[%emt 0:06:21]} Bd7 {[%emt 0:01:54]} 14. Bf4 {[%emt 0:03:28]} Bc6 {[%emt 0:08:41]} 15. Rad1 {[%emt 0:08:27]} Qc7 {[%emt 0:07:14]} 16. Rd3 {[%emt 0:03:22]} Rfd8 {[%emt 0:07:43]} 17. Rh3 {[%emt 0:13:41]} g6 {[%emt 0:04:23]} 18. Rc1 {[%emt 0:07:19]} Qd7 {[%emt 0:03:10]} 19. Rd1 {[%emt 0:03:33]} Qe8 {[%emt 0:04:25]} 20. Rhd3 {[%emt 0:00:53]} Rxd3 {[%emt 0:03:01]} 21. Rxd3 {[%emt 0:00:06]} Rd8 {[%emt 0:01:35]} 22. Ne4 {[%emt 0:06:00]} Rxd3 {[%emt 0:08:00]} 23. Qxd3 {[%emt 0:01:28]} Qd8 {[%emt 0:04:16]} 24. Qxd8+ {[%emt 0:12:10]} Bxd8 {[%emt 0:00:05]} 25. Nd6 {[%emt 0:05:55]} Nd7 {[%emt 0:04:34]} 26. Bc2 {[%emt 0:04:42]} Bb6 {[%emt 0:02:49]} 27. Nc8 {[%emt 0:03:35]} Bc5 {[%emt 0:02:54]} 28. b4 {[%emt 0:00:59]} Bxb4 {[%emt 0:00:37]} 29. Nxa7 {[%emt 0:00:03]} Bd5 {[%emt 0:00:37]} 30. a4 {[%emt 0:04:18]} Bc3 {[%emt 0:01:31]} 31. Nc8 {[%emt 0:00:41]} Kf8 {[%emt 0:02:31]} 32. Bh6+ {[%emt 0:00:46]} Ke8 {[%emt 0:00:04]} 33. Nd6+ {[%emt 0:00:45]} Ke7 {[%emt 0:00:07]} 34. f4 {[%emt 0:00:51]} Bd4+ {[%emt 0:01:08]} 35. Kf1 {[%emt 0:00:18]} f6 {[%emt 0:02:02]} 36. Nb5 {[%emt 0:03:56]} fxe5 {[%emt 0:01:32]} 37. Nxd4 {[%emt 0:00:27]} exd4 {[%emt 0:00:04]} 38. Bg7 {[%emt 0:00:45]} Nf6 {[%emt 0:02:17]} 39. g3 {[%emt 0:00:33]} Kf7 {[%emt 0:02:19]} 40. Bh8 {[%emt 0:00:00]} Bc4+ {[%emt 0:00:00]} 41. Kf2 {[%emt 0:06:14]} e5 {[%emt 0:09:03]} 42. fxe5 {[%emt 0:01:15]} Ng4+ {[%emt 0:01:53]} 43. Kf3 {[%emt 0:01:48]} Nxh2+ {[%emt 0:00:53]} 44. Ke4 {[%emt 0:00:41]} d3 {[%emt 0:03:32]} 45. Bxd3 {[%emt 0:03:51]} Bxd3+ {[%emt 0:00:15]} 46. Kxd3 {[%emt 0:00:03]} Ng4 {[%emt 0:02:40]} 47. e6+ {[%emt 0:12:59]} Kxe6 {[%emt 0:00:13]} 48. Ke4 {[%emt 0:00:56]} g5 {[%emt 0:01:58]} 49. Bc3 {[%emt 0:01:14]} Nf6+ {[%emt 0:03:57]} 50. Kd4 {[%emt 0:00:19]} Kf5 {[%emt 0:03:23]} 51. a5 {[%emt 0:01:32]} h5 {[%emt 0:01:37]} 52. Be1 {[%emt 0:00:08]} Nd7 {[%emt 0:05:15]} 53. Kd5 {[%emt 0:01:03]} Ne5 {[%emt 0:00:15]} 54. Kd6 {[%emt 0:02:13]} Nd3 {[%emt 0:00:49]} 55. Bd2 {[%emt 0:01:17]} h4 {[%emt 0:00:33]} 56. gxh4 {[%emt 0:01:19]} gxh4 {[%emt 0:00:24]} 57. Be3 {[%emt 0:00:32]} h3 {[%emt 0:01:08]} 58. Bg1 {[%emt 0:00:12]} Ne5 {[%emt 0:00:52]} 59. Kc7 {[%emt 0:02:16]} Nc4 {[%emt 0:00:33]} 60. Kxb7 {[%emt 0:00:26]} Nxa5+ {[%emt 0:00:03]} 61. Kc7 {[%emt 0:00:49]} Nc4 {[%emt 0:00:10]} 62. Bh2 {[%emt 0:00:29]} Ne5 {[%emt 0:00:28]} 63. Bg3 {[%emt 0:00:30]} Nc4 {[%emt 0:00:53]} 64. Kd7 {[%emt 0:00:28]} Nd2 {[%emt 0:00:04]} 65. Ke7 {[%emt 0:01:09]} Nf1 {[%emt 0:00:09]} 66. Bc7 {[%emt 0:00:39]} Kg4 {[%emt 0:00:04]} 0-1

[Event "Cracovia Festival-A 2023"]
[Site "Krakow"]
[Date "2023.12.28"]
[Round "2.47"]
[White "Gierulski, Kamil"]
[Black "Pacuszka, Tomasz"]
[Result "1/2-1/2"]
[ECO "B12"]
[WhiteElo "2223"]
[BlackElo "2124"]
[Annotator "ChessBase"]
[PlyCount "85"]
[EventDate "2023.12.24"]
[EventType "swiss"]
[EventCountry "POL"]
[SourceTitle "playchess.com"]
[Source "ChessBase"]
[SourceQuality "1"]
[TimeControl "40/5400+30:1800+30"]

1. e4 {[%emt 0:00:02]} c6 {[%emt 0:00:06]} 2. d4 {[%emt 0:00:06]} d5 {[%emt 0:00:06]} 3. e5 {[%emt 0:00:06]} Bf5 {[%emt 0:00:07]} 4. Nf3 {[%emt 0:00:06]} e6 {[%emt 0:00:07]} 5. Be2 {[%emt 0:00:06]} c5 {[%emt 0:00:18]} 6. c3 {[%emt 0:00:08]} Nc6 {[%emt 0:00:55]} 7. O-O {[%emt 0:00:15]} cxd4 {[%emt 0:03:38]} 8. Nxd4 {[%emt 0:00:07]} Nxd4 {[%emt 0:19:16]} 9. cxd4 {[%emt 0:00:09]} Ne7 {[%emt 0:00:25]} 10. Nc3 {[%emt 0:01:58]} Nc6 {[%emt 0:04:24]} 11. g4 {[%emt 0:00:34]} Bg6 {[%emt 0:00:12]} 12. f4 {[%emt 0:00:04]} f5 {[%emt 0:16:51]} 13. exf6 {[%emt 0:01:27]} gxf6 {[%emt 0:06:06]} 14. f5 {[%emt 0:13:13]} Bf7 {[%emt 0:02:40]} 15. fxe6 {[%emt 0:03:26]} Bxe6 {[%emt 0:00:06]} 16. g5 {[%emt 0:00:17]} f5 {[%emt 0:04:37]} 17. Bd3 {[%emt 0:12:58]} Qd7 {[%emt 0:04:25]} 18. Qh5+ {[%emt 0:00:21]} Kd8 {[%emt 0:00:07]} 19. Bf4 {[%emt 0:03:34]} Bg7 {[%emt 0:07:55]} 20. Kh1 {[%emt 0:00:57]} Bxd4 {[%emt 0:02:54]} 21. Nb5 {[%emt 0:04:04]} Be5 {[%emt 0:01:14]} 22. Rae1 {[%emt 0:02:32]} Bxf4 {[%emt 0:01:54]} 23. Rxf4 {[%emt 0:00:03]} a6 {[%emt 0:00:28]} 24. Qh6 {[%emt 0:01:01]} Re8 {[%emt 0:01:22]} 25. Qf6+ {[%emt 0:00:22]} Re7 {[%emt 0:04:58]} 26. g6 {[%emt 0:08:12]} hxg6 {[%emt 0:02:19]} 27. Rh4 {[%emt 0:00:02]} axb5 {[%emt 0:00:32]} 28. Rh8+ {[%emt 0:00:07]} Kc7 {[%emt 0:00:16]} 29. Rxa8 {[%emt 0:00:04]} d4 {[%emt 0:00:49]} 30. Kg1 {[%emt 0:01:34]} Bc4 {[%emt 0:01:39]} 31. Rxe7 {[%emt 0:07:49]} Qxe7 {[%emt 0:00:06]} 32. Qxe7+ {[%emt 0:00:05]} Nxe7 {[%emt 0:00:03]} 33. Bf1 {[%emt 0:00:51]} g5 {[%emt 0:09:17]} 34. h3 {[%emt 0:07:38]} d3 {[%emt 0:04:25]} 35. Kf2 {[%emt 0:01:46]} Nd5 {[%emt 0:00:37]} 36. b3 {[%emt 0:03:25]} d2 {[%emt 0:00:06]} 37. Be2 {[%emt 0:00:08]} Bd3 {[%emt 0:00:36]} 38. Bd1 {[%emt 0:10:05]} f4 {[%emt 0:00:22]} 39. Rg8 {[%emt 0:03:16]} Ne3 {[%emt 0:01:41]} 40. Bf3 {[%emt 0:00:00]} Be4 {[%emt 0:00:00]} 41. Be2 {[%emt 0:01:58]} Bd3 {[%emt 0:06:19]} 42. Bf3 {[%emt 0:00:10]} Be4 {[%emt 0:02:03]} 43. Be2 {[%emt 0:00:13]} 1/2-1/2

[Event "Cracovia Festival-A 2023"]
[Site "Krakow"]
[Date "2023.12.28"]
[Round "2.48"]
[White "Bilczewski, Kacper"]
[Black "Jaskolka, Tomasz"]
[Result "1/2-1/2"]
[ECO "C15"]
[WhiteElo "2125"]
[BlackElo "2222"]
[Annotator "ChessBase"]
[PlyCount "143"]
[EventDate "2023.12.24"]
[EventType "swiss"]
[EventCountry "POL"]
[SourceTitle "playchess.com"]
[Source "ChessBase"]
[SourceQuality "1"]
[TimeControl "40/5400+30:1800+30"]

1. e4 {[%emt 0:00:02]} e6 {[%emt 0:01:10]} 2. d4 {[%emt 0:00:32]} d5 {[%emt 0:00:05]} 3. Nc3 {[%emt 0:03:27]} Bb4 {[%emt 0:00:19]} 4. exd5 {[%emt 0:00:09]} exd5 {[%emt 0:00:03]} 5. Bd3 {[%emt 0:00:31]} Nf6 {[%emt 0:00:22]} 6. Nge2 {[%emt 0:00:42]} O-O {[%emt 0:04:31]} 7. O-O {[%emt 0:00:06]} Bg4 {[%emt 0:08:38]} 8. f3 {[%emt 0:04:57]} Be6 {[%emt 0:05:01]} 9. Nf4 {[%emt 0:03:06]} c5 {[%emt 0:01:33]} 10. a3 {[%emt 0:06:15]} Ba5 {[%emt 0:09:20]} 11. dxc5 {[%emt 0:00:41]} Bxc3 {[%emt 0:00:07]} 12. bxc3 {[%emt 0:00:07]} Qa5 {[%emt 0:00:32]} 13. Be3 {[%emt 0:08:08]} Qxc3 {[%emt 0:02:21]} 14. Qe1 {[%emt 0:01:06]} Qe5 {[%emt 0:19:24]} 15. Rb1 {[%emt 0:01:51]} Re8 {[%emt 0:06:38]} 16. Nxe6 {[%emt 0:03:23]} Rxe6 {[%emt 0:07:51]} 17. Bf2 {[%emt 0:00:46]} Qg5 {[%emt 0:10:31]} 18. Qc1 {[%emt 0:08:51]} Qxc1 {[%emt 0:03:09]} 19. Rfxc1 {[%emt 0:00:18]} b6 {[%emt 0:01:26]} 20. cxb6 {[%emt 0:10:22]} axb6 {[%emt 0:00:04]} 21. Bxb6 {[%emt 0:00:33]} Nbd7 {[%emt 0:01:52]} 22. Bd4 {[%emt 0:00:44]} Rxa3 {[%emt 0:00:40]} 23. Ra1 {[%emt 0:00:57]} Rxa1 {[%emt 0:01:20]} 24. Rxa1 {[%emt 0:00:21]} g6 {[%emt 0:03:27]} 25. Ra8+ {[%emt 0:02:01]} Kg7 {[%emt 0:00:23]} 26. f4 {[%emt 0:04:22]} h5 {[%emt 0:07:27]} 27. f5 {[%emt 0:09:03]} Re7 {[%emt 0:00:25]} 28. Ra7 {[%emt 0:01:38]} Kf8 {[%emt 0:04:45]} 29. fxg6 {[%emt 0:00:55]} fxg6 {[%emt 0:00:09]} 30. Bxg6 {[%emt 0:00:42]} Re6 {[%emt 0:01:23]} 31. Bf5 {[%emt 0:03:27]} Re7 {[%emt 0:00:02]} 32. Bc3 {[%emt 0:04:47]} Ke8 {[%emt 0:00:23]} 33. Bg6+ {[%emt 0:06:29]} Kd8 {[%emt 0:00:05]} 34. Ra6 {[%emt 0:02:04]} Ne4 {[%emt 0:01:24]} 35. Ba5+ {[%emt 0:00:08]} Kc8 {[%emt 0:00:03]} 36. Bxh5 {[%emt 0:02:07]} Kb7 {[%emt 0:00:10]} 37. Rh6 {[%emt 0:00:39]} Ne5 {[%emt 0:00:43]} 38. Bg6 {[%emt 0:09:55]} Nc6 {[%emt 0:01:11]} 39. Be1 {[%emt 0:02:14]} Re6 {[%emt 0:00:30]} 40. Rh7+ {[%emt 0:00:00]} Ka6 {[%emt 0:00:00]} 41. Bf7 {[%emt 0:06:37]} Rd6 {[%emt 0:07:15]} 42. Rh5 {[%emt 0:00:48]} Nf6 {[%emt 0:10:27]} 43. Rh6 {[%emt 0:01:33]} Ne5 {[%emt 0:00:21]} 44. Bh4 {[%emt 0:04:35]} Neg4 {[%emt 0:01:26]} 45. Rg6 {[%emt 0:02:17]} Rb6 {[%emt 0:00:07]} 46. g3 {[%emt 0:01:01]} Ka7 {[%emt 0:02:31]} 47. Bxf6 {[%emt 0:01:35]} Nxf6 {[%emt 0:00:07]} 48. Kg2 {[%emt 0:00:24]} Rc6 {[%emt 0:00:37]} 49. Rxf6 {[%emt 0:01:06]} Rxf6 {[%emt 0:00:03]} 50. Bxd5 {[%emt 0:00:06]} Kb6 {[%emt 0:00:11]} 51. g4 {[%emt 0:00:26]} Kc5 {[%emt 0:00:51]} 52. c4 {[%emt 0:00:26]} Kd4 {[%emt 0:01:32]} 53. g5 {[%emt 0:01:35]} Rf4 {[%emt 0:02:56]} 54. Kg3 {[%emt 0:00:11]} Ke5 {[%emt 0:00:06]} 55. h4 {[%emt 0:00:33]} Rd4 {[%emt 0:00:36]} 56. g6 {[%emt 0:05:25]} Kf6 {[%emt 0:00:29]} 57. h5 {[%emt 0:00:12]} Kg7 {[%emt 0:01:09]} 58. Bf7 {[%emt 0:02:27]} Re4 {[%emt 0:04:32]} 59. Bd5 {[%emt 0:05:03]} Rd4 {[%emt 0:00:17]} 60. Bf7 {[%emt 0:01:17]} Re4 {[%emt 0:00:05]} 61. Kf3 {[%emt 0:02:43]} Rh4 {[%emt 0:00:15]} 62. h6+ {[%emt 0:00:22]} Rxh6 {[%emt 0:05:07]} 63. Ke4 {[%emt 0:00:06]} Rh5 {[%emt 0:00:10]} 64. Kd4 {[%emt 0:00:15]} Kf6 {[%emt 0:00:13]} 65. c5 {[%emt 0:01:12]} Rg5 {[%emt 0:00:33]} 66. Kc4 {[%emt 0:00:12]} Ke7 {[%emt 0:00:13]} 67. Kb5 {[%emt 0:00:06]} Kd7 {[%emt 0:01:49]} 68. Kb6 {[%emt 0:00:06]} Rg1 {[%emt 0:00:26]} 69. c6+ {[%emt 0:01:14]} Kd6 {[%emt 0:00:19]} 70. g7 {[%emt 0:01:40]} Rb1+ {[%emt 0:00:19]} 71. Ka7 {[%emt 0:00:50]} Rg1 {[%emt 0:00:14]} 72. g8=Q {[%emt 0:00:53]} 1/2-1/2

[Event "Cracovia Festival-A 2023"]
[Site "Krakow"]
[Date "2023.12.28"]
[Round "2.49"]
[White "Eke, Salih"]
[Black "Zalega, Maciej"]
[Result "1-0"]
[ECO "E73"]
[WhiteElo "2217"]
[BlackElo "2113"]
[Annotator "ChessBase"]
[PlyCount "69"]
[EventDate "2023.12.24"]
[EventType "swiss"]
[EventCountry "POL"]
[SourceTitle "playchess.com"]
[Source "ChessBase"]
[SourceQuality "1"]
[TimeControl "40/5400+30:1800+30"]

1. d4 {[%emt 0:04:19]} Nf6 {[%emt 0:00:02]} 2. c4 {[%emt 0:00:48]} g6 {[%emt 0:00:05]} 3. Nc3 {[%emt 0:00:03]} Bg7 {[%emt 0:00:04]} 4. e4 {[%emt 0:00:03]} d6 {[%emt 0:00:03]} 5. Be2 {[%emt 0:00:07]} O-O {[%emt 0:00:12]} 6. Be3 {[%emt 0:00:09]} e5 {[%emt 0:00:38]} 7. d5 {[%emt 0:00:47]} Na6 {[%emt 0:08:41]} 8. h4 {[%emt 0:03:20]} Nc5 {[%emt 0:04:01]} 9. Qc2 {[%emt 0:00:23]} a5 {[%emt 0:04:28]} 10. h5 {[%emt 0:03:16]} c6 {[%emt 0:04:07]} 11. h6 {[%emt 0:02:51]} Bh8 {[%emt 0:00:05]} 12. Bxc5 {[%emt 0:03:55]} dxc5 {[%emt 0:00:10]} 13. Nf3 {[%emt 0:01:19]} cxd5 {[%emt 0:06:08]} 14. cxd5 {[%emt 0:02:31]} Ne8 {[%emt 0:00:13]} 15. Nb5 {[%emt 0:11:13]} b6 {[%emt 0:01:02]} 16. a4 {[%emt 0:01:57]} Ba6 {[%emt 0:02:02]} 17. Nc3 {[%emt 0:13:27]} Bc8 {[%emt 0:12:13]} 18. O-O-O {[%emt 0:04:32]} Nd6 {[%emt 0:07:08]} 19. Nb5 {[%emt 0:03:51]} Bg4 {[%emt 0:01:29]} 20. Nxd6 {[%emt 0:05:09]} Qxd6 {[%emt 0:00:17]} 21. Kb1 {[%emt 0:07:00]} Bxf3 {[%emt 0:03:36]} 22. Bxf3 {[%emt 0:00:15]} Bf6 {[%emt 0:00:07]} 23. Be2 {[%emt 0:05:40]} Bg5 {[%emt 0:02:50]} 24. g3 {[%emt 0:01:14]} Rad8 {[%emt 0:12:55]} 25. Rdf1 {[%emt 0:03:08]} Rc8 {[%emt 0:12:56]} 26. Bc4 {[%emt 0:01:22]} Kh8 {[%emt 0:03:19]} 27. Qc3 {[%emt 0:03:28]} f5 {[%emt 0:05:04]} 28. f4 {[%emt 0:01:43]} Bf6 {[%emt 0:00:20]} 29. exf5 {[%emt 0:06:16]} gxf5 {[%emt 0:01:32]} 30. fxe5 {[%emt 0:01:32]} Qxe5 {[%emt 0:00:16]} 31. Qc2 {[%emt 0:04:04]} Qe4 {[%emt 0:03:34]} 32. Rh5 {[%emt 0:00:19]} Qe3 {[%emt 0:03:57]} 33. Rhxf5 {[%emt 0:02:19]} Qxh6 {[%emt 0:00:08]} 34. g4 {[%emt 0:00:46]} Bg7 {[%emt 0:02:08]} 35. Rh5 {[%emt 0:00:30]} 1-0

[Event "Cracovia Festival-A 2023"]
[Site "Krakow"]
[Date "2023.12.28"]
[Round "2.50"]
[White "van der Merwe, Alexander"]
[Black "Selbes, Tamer Tarik"]
[Result "1/2-1/2"]
[ECO "C55"]
[WhiteElo "2113"]
[BlackElo "2185"]
[Annotator "ChessBase"]
[PlyCount "145"]
[EventDate "2023.12.24"]
[EventType "swiss"]
[EventCountry "POL"]
[SourceTitle "playchess.com"]
[Source "ChessBase"]
[SourceQuality "1"]
[TimeControl "40/5400+30:1800+30"]

1. e4 {[%emt 0:00:02]} e5 {[%emt 0:01:17]} 2. Nf3 {[%emt 0:00:27]} Nc6 {[%emt 0:00:11]} 3. Bc4 {[%emt 0:00:05]} Nf6 {[%emt 0:00:06]} 4. d3 {[%emt 0:00:06]} h6 {[%emt 0:00:28]} 5. a4 {[%emt 0:08:52]} a5 {[%emt 0:01:30]} 6. h3 {[%emt 0:02:23]} Bc5 {[%emt 0:02:53]} 7. c3 {[%emt 0:01:20]} d6 {[%emt 0:00:25]} 8. Nbd2 {[%emt 0:01:35]} Ba7 {[%emt 0:00:24]} 9. Nf1 {[%emt 0:03:03]} O-O {[%emt 0:00:19]} 10. Ng3 {[%emt 0:04:46]} Be6 {[%emt 0:01:08]} 11. Bxe6 {[%emt 0:07:08]} fxe6 {[%emt 0:02:50]} 12. O-O {[%emt 0:00:09]} Rf7 {[%emt 0:01:04]} 13. Be3 {[%emt 0:06:13]} d5 {[%emt 0:02:18]} 14. Qe2 {[%emt 0:02:28]} Nd7 {[%emt 0:10:13]} 15. Rae1 {[%emt 0:06:34]} d4 {[%emt 0:08:31]} 16. cxd4 {[%emt 0:05:01]} exd4 {[%emt 0:00:04]} 17. Bd2 {[%emt 0:05:33]} Nc5 {[%emt 0:00:36]} 18. Ra1 {[%emt 0:01:42]} Nb3 {[%emt 0:01:55]} 19. Ra3 {[%emt 0:01:13]} Nxd2 {[%emt 0:00:13]} 20. Nxd2 {[%emt 0:00:56]} Bc5 {[%emt 0:00:25]} 21. Raa1 {[%emt 0:00:48]} Bd6 {[%emt 0:00:50]} 22. Nc4 {[%emt 0:03:07]} Qh4 {[%emt 0:02:34]} 23. e5 {[%emt 0:06:37]} Bb4 {[%emt 0:00:16]} 24. Kh2 {[%emt 0:01:47]} Raf8 {[%emt 0:02:45]} 25. Rad1 {[%emt 0:03:38]} Be7 {[%emt 0:18:15]} 26. Ne4 {[%emt 0:03:55]} Qf4+ {[%emt 0:01:00]} 27. g3 {[%emt 0:01:41]} Qf3 {[%emt 0:00:48]} 28. Qxf3 {[%emt 0:03:03]} Rxf3 {[%emt 0:00:05]} 29. Kg2 {[%emt 0:00:10]} R3f5 {[%emt 0:01:14]} 30. f4 {[%emt 0:01:23]} b6 {[%emt 0:01:07]} 31. Rf3 {[%emt 0:01:06]} g5 {[%emt 0:00:54]} 32. Rdf1 {[%emt 0:00:14]} Nb4 {[%emt 0:02:21]} 33. Na3 {[%emt 0:08:15]} Nd5 {[%emt 0:01:51]} 34. Nc2 {[%emt 0:01:54]} gxf4 {[%emt 0:04:57]} 35. Nxd4 {[%emt 0:00:43]} Ne3+ {[%emt 0:00:14]} 36. Rxe3 {[%emt 0:00:22]} fxe3 {[%emt 0:00:05]} 37. Nxf5 {[%emt 0:00:16]} exf5 {[%emt 0:00:14]} 38. Nc3 {[%emt 0:02:36]} Rd8 {[%emt 0:02:45]} 39. Rd1 {[%emt 0:01:59]} Bc5 {[%emt 0:02:29]} 40. Kf3 {[%emt 0:00:00]} Bd4 {[%emt 0:00:00]} 41. Kf4 {[%emt 0:25:24]} Re8 {[%emt 0:07:04]} 42. Kxf5 {[%emt 0:00:50]} Rxe5+ {[%emt 0:00:09]} 43. Kf4 {[%emt 0:00:11]} Rc5 {[%emt 0:01:40]} 44. Ne2 {[%emt 0:02:54]} Bxb2 {[%emt 0:01:57]} 45. Kxe3 {[%emt 0:00:01]} Rg5 {[%emt 0:05:43]} 46. d4 {[%emt 0:03:51]} Ba3 {[%emt 0:00:08]} 47. g4 {[%emt 0:00:36]} Rg7 {[%emt 0:12:24]} 48. Nc3 {[%emt 0:01:35]} h5 {[%emt 0:07:16]} 49. Ne4 {[%emt 0:00:45]} hxg4 {[%emt 0:00:18]} 50. hxg4 {[%emt 0:00:01]} Kf8 {[%emt 0:01:08]} 51. Kf4 {[%emt 0:02:12]} Ke7 {[%emt 0:00:24]} 52. g5 {[%emt 0:00:39]} c6 {[%emt 0:02:32]} 53. d5 {[%emt 0:02:00]} Rf7+ {[%emt 0:01:53]} 54. Kg4 {[%emt 0:00:22]} cxd5 {[%emt 0:01:16]} 55. Rxd5 {[%emt 0:00:01]} Rf1 {[%emt 0:00:43]} 56. Rb5 {[%emt 0:00:56]} Bc1 {[%emt 0:00:16]} 57. Nc3 {[%emt 0:02:16]} Kd7 {[%emt 0:04:03]} 58. Ne2 {[%emt 0:00:59]} Be3 {[%emt 0:01:42]} 59. Re5 {[%emt 0:00:08]} Bc5 {[%emt 0:00:48]} 60. g6 {[%emt 0:00:34]} Bf8 {[%emt 0:00:35]} 61. Rf5 {[%emt 0:00:52]} Rxf5 {[%emt 0:01:33]} 62. Kxf5 {[%emt 0:00:01]} Bg7 {[%emt 0:00:49]} 63. Nf4 {[%emt 0:01:05]} b5 {[%emt 0:02:01]} 64. axb5 {[%emt 0:00:21]} a4 {[%emt 0:00:04]} 65. Nd3 {[%emt 0:00:25]} a3 {[%emt 0:00:10]} 66. Nc1 {[%emt 0:00:07]} Kd6 {[%emt 0:00:25]} 67. Ke4 {[%emt 0:00:09]} Kc5 {[%emt 0:00:20]} 68. Kd3 {[%emt 0:00:05]} Kxb5 {[%emt 0:01:01]} 69. Kc2 {[%emt 0:00:12]} Kc4 {[%emt 0:00:06]} 70. Na2 {[%emt 0:01:05]} Bb2 {[%emt 0:00:15]} 71. Nc1 {[%emt 0:00:13]} Bg7 {[%emt 0:01:32]} 72. Na2 {[%emt 0:00:06]} Bb2 {[%emt 0:00:31]} 73. Nc1 {[%emt 0:00:39]} 1/2-1/2

[Event "Cracovia Festival-A 2023"]
[Site "Krakow"]
[Date "2023.12.28"]
[Round "2.51"]
[White "Zdybel, Przemyslaw"]
[Black "Krainski, Aleksander"]
[Result "1-0"]
[ECO "C41"]
[WhiteElo "2180"]
[BlackElo "2102"]
[Annotator "ChessBase"]
[PlyCount "79"]
[EventDate "2023.12.24"]
[EventType "swiss"]
[EventCountry "POL"]
[SourceTitle "playchess.com"]
[Source "ChessBase"]
[SourceQuality "1"]
[TimeControl "40/5400+30:1800+30"]

1. e4 {[%emt 0:00:03]} e5 {[%emt 0:00:34]} 2. Nf3 {[%emt 0:00:07]} d6 {[%emt 0:00:06]} 3. d4 {[%emt 0:00:18]} Nf6 {[%emt 0:00:10]} 4. Nc3 {[%emt 0:00:14]} Nc6 {[%emt 0:00:07]} 5. dxe5 {[%emt 0:05:44]} Nxe5 {[%emt 0:00:16]} 6. Nxe5 {[%emt 0:05:34]} dxe5 {[%emt 0:00:10]} 7. Qxd8+ {[%emt 0:00:05]} Kxd8 {[%emt 0:00:07]} 8. Bg5 {[%emt 0:01:17]} c6 9. O-O-O+ {[%emt 0:20:13]} Ke8 {[%emt 0:00:27]} 10. f4 {[%emt 0:05:39]} h6 {[%emt 0:02:59]} 11. Bxf6 {[%emt 0:07:48]} gxf6 {[%emt 0:00:07]} 12. fxe5 {[%emt 0:05:08]} fxe5 {[%emt 0:00:10]} 13. Bc4 {[%emt 0:00:02]} b5 {[%emt 0:07:46]} 14. Bb3 {[%emt 0:00:57]} Be7 {[%emt 0:16:33]} 15. Rdf1 {[%emt 0:03:34]} Be6 {[%emt 0:05:01]} 16. Bxe6 {[%emt 0:10:31]} fxe6 {[%emt 0:05:35]} 17. Kd1 {[%emt 0:00:02]} Rd8+ {[%emt 0:02:24]} 18. Ke2 {[%emt 0:02:20]} Rd4 {[%emt 0:02:53]} 19. Rd1 {[%emt 0:01:47]} Bb4 {[%emt 0:04:33]} 20. Rxd4 {[%emt 0:02:19]} exd4 {[%emt 0:00:06]} 21. Nd1 {[%emt 0:01:01]} Ke7 {[%emt 0:04:45]} 22. Nf2 {[%emt 0:00:44]} e5 {[%emt 0:00:45]} 23. a4 {[%emt 0:05:59]} Rg8 {[%emt 0:25:52]} 24. g3 {[%emt 0:01:33]} Kd6 {[%emt 0:03:56]} 25. Nd3 {[%emt 0:02:17]} Ba5 {[%emt 0:00:57]} 26. Rf1 {[%emt 0:01:45]} Rg6 {[%emt 0:00:20]} 27. Rf7 {[%emt 0:02:22]} Bb6 {[%emt 0:01:04]} 28. axb5 {[%emt 0:05:17]} cxb5 {[%emt 0:00:58]} 29. Nb4 {[%emt 0:00:02]} Ke6 {[%emt 0:05:59]} 30. Rf5 {[%emt 0:00:02]} Bc5 {[%emt 0:00:39]} 31. Nd5 {[%emt 0:00:33]} Bd6 32. b4 {[%emt 0:01:56]} Rg4 {[%emt 0:04:25]} 33. Rf6+ {[%emt 0:01:20]} Kd7 {[%emt 0:00:05]} 34. Kd3 {[%emt 0:00:10]} h5 {[%emt 0:00:19]} 35. Rh6 {[%emt 0:01:32]} Rg5 {[%emt 0:00:16]} 36. Rh7+ {[%emt 0:01:01]} Kc6 {[%emt 0:00:10]} 37. Rxa7 {[%emt 0:00:34]} h4 {[%emt 0:00:28]} 38. g4 {[%emt 0:00:40]} h3 {[%emt 0:00:39]} 39. Ke2 {[%emt 0:01:20]} Bb8 {[%emt 0:02:28]} 40. Ra6+ {[%emt 0:00:00]} 1-0